Cogmind - Beta 16 @@@ ROGUE MODE // 2025.10.25 @ 19:28:57 Player: FloorSandwich Result: Destroyed by G-34 Mercenary with Small Laser Performance ------------- Evolutions (0) 0 Regions Visited (1) 200 Robots Destroyed (24) 120 Value Destroyed (349) 349 Prototype IDs (0) 0 Alien Tech Used (0) 0 Bonus (0) 0 TOTAL SCORE: 669 Bonus ------- None Cogmind --------- Core Integrity 0/250 Matter 242/300 Energy 89/100 System Corruption 0% Temperature Warm (124) Movement Walking (120) Location -10/Materials Parts ------- > --- POWER (1) -------- (None) > --- PROPULSION (2) --- Aluminum Leg > --- UTILITY (2) ------ Small Storage Unit Visual Processing Unit > --- WEAPON (2) ------- Particle Gun Light Assault Rifle > --- INVENTORY (8) ---- Grenade Launcher Hammer Peak State ------------ > --- POWER ------------ Light Ion Engine > --- PROPULSION ------- Aluminum Leg Aluminum Leg > --- UTILITY ---------- Small Storage Unit Visual Processing Unit > --- WEAPON ----------- Assault Rifle Light Assault Rifle > --- INVENTORY -------- Light Assault Rifle Grenade Launcher [Rating: 8] Favorites ----------- Power Light Ion Engine Engine Light Ion Engine Propulsion Aluminum Leg Leg Aluminum Leg Utility Small Storage Unit Storage Small Storage Unit Processor Visual Processing Unit Weapon Light Assault Rifle Energy Gun Particle Gun Ballistic Gun Light Assault Rifle Build | -11 -10 ------- Run | Yrd Mat Slots Evolved . | . . Power . | . . Propulsion . | . . Utility . | . . Weapon . | . . Parts Attached 11 | 6 5 Power 1 | 1 . Engine 1 | 1 . Core . | . . Reactor . | . . Propulsion 4 | 2 2 Treads . | . . Leg 4 | 2 2 Wheel . | . . Hover . | . . Flight . | . . Utility 2 | 1 1 Device . | . . Storage 1 | 1 . Processor 1 | . 1 Hackware . | . . Protection . | . . Artifact . | . . Weapon 4 | 2 2 Energy Gun 1 | . 1 Energy Cannon . | . . Ballistic Gun 3 | 2 1 Ballistic Cannon . | . . Launcher . | . . Special Weapon . | . . Impact Weapon . | . . Slashing Weapon . | . . Piercing Weapon . | . . Special Melee Weapon . | . . Unidentified Prototypes . | . . Parts Lost 4 | . 4 Power 1 | . 1 Propulsion 2 | . 2 Utility . | . . Weapon 1 | . 1 Highest Loss Streak 3 | . 3 To Critical Strikes . | . . Average Backups . | . 1 Power . | . . Propulsion . | . . Utility . | . . Weapon . | . 1 Tool/Special . | . . Unused Backups 2 | . 2 Power . | . . Propulsion . | . . Utility . | . . Weapon 2 | . 2 Tool/Special . | . . Average Slot Usage (%) 88 | . 88 Engine 13 | . 13 Leg 27 | . 27 Storage 14 | . 14 Processor 3 | . 3 Ballistic Gun 27 | . 27 Peak Build Rating 8 | 6 8 Average Rating 6 | 5 6 On Entrance 3 | . 6 Avg Prop Armor Cover (%) . | . . Naked Turns . | . . Heaviest Build 11 | 11 11 Greatest Support 20 | 20 20 Greatest Overweight (x) 1 | . 1 Average Overweight (x) . | . . Largest Inventory Capacity 8 | 8 8 Average Capacity 7 | 7 8 Most Carried 5 | 5 3 Average Carried . | . 1 Final Capacity 8 | 8 8 Final Carried 2 | . 2 Class Distribution -------------------- 100% | Mutant Dominant Class ---------------- Mutant | -10/Materials Resources | -11 -10 ----------- Run | Yrd Mat Matter Collected 582 | 436 146 Remotely . | . . Salvage Created 622 | 329 293 Parts 59 | 35 24 Haulers Intercepted . | . . Recyclers Shooed . | . . Parts Field Recycled . | . . Retrieved Matter . | . . Parts Self-Destructed . | . . Prevented . | . . Parts Restored . | . . Kills | -11 -10 ------- Run | Yrd Mat Combat Hostiles Destroyed 9 | . 9 Guns 9 | . 9 Classes Destroyed 6 | 3 3 Worker 4 | 4 . Tunneler 9 | 9 . Recycler 1 | 1 . Watcher 1 | . 1 Swarmer 3 | . 3 Grunt 6 | . 6 Best Kill Streak 3 | 3 2 Combat Bots Only 2 | . 2 Max Kills in Single Turn 1 | 1 1 Gunslinging . | . . Exploded . | . . Melee . | . . Uniques/NPCs Destroyed . | . . Combat | -11 -10 -------- Run | Yrd Mat Hostile Shots Fired 106 | . 106 Missed 27 | . 27 Hits 79 | . 79 Projectile 79 | . 79 Critical Strikes 1 | . 1 Damage Taken 905 | . 905 Core 254 | . 254 Absorbed by Shields . | . . Core Remaining (%) 100 | 100 . Volleys Fired 92 | 47 45 Largest 2 | 2 2 Hottest 85 | 40 85 Shots Fired 184 | 94 90 Gun 184 | 94 90 Cannon . | . . Launcher . | . . Special . | . . Kinetic 178 | 94 84 Thermal 6 | . 6 Explosive . | . . Electromagnetic . | . . Robot Hit Streak 11 | 5 11 Robot Miss Streak 4 | 4 3 Penetration Max . | . . Secondary Targets 2 | . 2 Max Gunslinging Chain 1 | . 1 Shots Hit Robots 108 | 46 62 Core Hits 44 | 19 25 Critical Kills . | . . Critical Parts Destroyed . | . . Critical Strikes 1 | . 1 Burn 1 | . 1 Melee Attacks . | . . Impact . | . . Slashing . | . . Piercing . | . . Sneak Attacks . | . . Combat Hostiles . | . . Follow-up Attacks . | . . Damage Inflicted 1121 | 483 638 Guns 1119 | 483 636 Cannons . | . . Explosions . | . . Melee . | . . Ramming 2 | . 2 Kinetic 1074 | 483 591 Thermal 45 | . 45 Explosive . | . . Electromagnetic . | . . Impact . | . . Slashing . | . . Piercing . | . . Highest Corruption . | . . Average Corruption . | . . Corruption Purged . | . . Corruption Blocked . | . . Overload Shots . | . . Overflow Damage . | . . Projectiles . | . . Explosions . | . . Melee . | . . Knockbacks . | . . Impact . | . . Kinetic . | . . Secondary . | . . Self-Inflicted Damage . | . . Shots . | . . Rammed . | . . Targets Rammed 1 | . 1 Kicked 1 | . 1 Crushed . | . . Highest Temperature 137 | . 137 Average Temperature 27 | . 27 Received Heat Transfer 462 | . 462 Siege Activations . | . . Martial Activations . | . . Shielding Activations . | . . Robots Disrupted . | . . Combat Hostiles . | . . Robots Corrupted . | . . Combat Hostiles . | . . Parts Fried . | . . Impact Corruptions . | . . Robots Melted . | . . Combat Hostiles . | . . Parts Melted . | . . Heat Transferred 185 | . 185 Parts Sabotaged . | . . Parts Stolen . | . . Parts Stripped . | . . Power Chain Reactions . | . . Alert | -11 -10 ------- Run | Yrd Mat Maximum Alert Level . | . . Low Security (%) 100 | 100 100 Level 1 . | . . Level 2 . | . . Level 3 . | . . Level 4 . | . . Level 5 . | . . High Security . | . . Max Security . | . . Peak Influence 97 | 15 97 Initial . | . . Average 17 | 1 24 Influence Increases 407 | 70 337 Destroy 0b10 Robot/C 180 | . 180 Destroy 0b10 Robot/NC 75 | 70 5 Destroy Leader 62 | . 62 Lose Combat Pursuer 90 | . 90 Influence Decreases 310 | 70 240 Time Decay 280 | 70 210 Lost Part 30 | . 30 Squads Dispatched 3 | . 3 Investigation 1 | . 1 Extermination . | . . Reinforcement 2 | . 2 Assault . | . . Garrison . | . . Intercept . | . . Searches Triggered . | . . Construction Impeded . | . . Haulers Reinforced . | . . Active Scanning Responses . | . . Cargo Convoy Interrupts . | . . Stealth | -11 -10 --------- Run | Yrd Mat Distress Signals 2 | . 2 Communications Jammed . | . . Distress Signals . | . . Times Spotted 25 | . 25 Peak Tracking Total 6 | . 6 Tactical Retreats 4 | . 4 Traps | -11 -10 ------- Run | Yrd Mat Traps Triggered 1 | . 1 Indirectly . | . . Trap Hack Attempts . | . . Triggered . | . . Disarmed . | . . Reprogrammed . | . . Reused . | . . Traps Extracted . | . . Installed . | . . Triggered . | . . Machines | -11 -10 ---------- Run | Yrd Mat Machines Disabled . | . . Max in Single Turn . | . . Machines Repaired . | . . Machines Dismantled . | . . Machines Sabotaged . | . . Overloaded Fab Kills . | . . Hacking | -11 -10 --------- Run | Yrd Mat Machines Accessed 2 | . 2 Terminals 1 | . 1 Fabricators . | . . Repair Stations . | . . Recycling Units 1 | . 1 Scanalyzers . | . . Garrison Access . | . . Total Hacks 9 | . 9 Successful 5 | . 5 Failed 4 | . 4 Catastrophic 2 | . 2 Database Lockouts . | . . Manual . | . . Terminals 3 | . 3 Fabricators . | . . Repair Stations . | . . Recycling Units 6 | . 6 Scanalyzers . | . . Garrison Access . | . . Terminal Hacks . | . . Fabricator Hacks . | . . Repair Station Hacks . | . . Recycling Unit Hacks 5 | . 5 Retrieve Matter 4 | . 4 Retrieve Components 1 | . 1 Scanalyzer . | . . Garrison Access Hacks . | . . Unauthorized Hacks . | . . Terminals . | . . Fabricators . | . . Repair Stations . | . . Recycling Units . | . . Scanalyzers . | . . Garrison Access . | . . Data Cores Recovered . | . . Used . | . . Hacking Detections 2 | . 2 Full Trace Events 2 | . 2 Feedback Events . | . . Feedback Blocked . | . . Robot Schematics Acquired . | . . Robots Built . | . . Authchips . | . . Time . | . . Total Robot Build Rating . | . . Part Schematics Acquired . | . . Parts Built . | . . Authchips . | . . Time . | . . Total Part Build Rating . | . . Part Studies Acquired . | . . Parts Repaired . | . . Time . | . . Parts Recycled . | . . Recycled Matter . | . . Retrieved Matter . | . . Retrieved Components 1 | . 1 Parts Scanalyzed . | . . Part Schematics Acquired . | . . Parts Damaged . | . . Bothacking | -11 -10 ------------ Run | Yrd Mat Used RIF Installer . | . . Robots Hacked . | . . Non-combat . | . . Combat . | . . Robot Hacks Applied . | . . Relay Couplers Released . | . . Fabnet Peak Effective % . | . . Robots Rewired . | . . Allies Hacked . | . . Hacks Repelled . | . . Allies | -11 -10 -------- Run | Yrd Mat Total Allies . | . . Largest Group . | . . Highest-Rated Group . | . . Highest-Rated Ally . | . . Total Orders . | . . Ally Attacks . | . . Total Damage . | . . Kills . | . . Allies Corrupted . | . . Allies Melted . | . . Intel | -11 -10 ------- Run | Yrd Mat Active Infowar (turns) 277 | . 277 Optics 277 | . 277 Robot Analysis Total . | . . Derelict Logs Recovered . | . . Drone Launches . | . . Drone Recoveries . | . . Exploration | -11 -10 ------------- Run | Yrd Mat Turns Passed 1561 | 522 1039 Spaces Moved 757 | 323 434 Core 17 | 17 . Treads . | . . Legs 740 | 306 434 Wheels . | . . Hover . | . . Flight . | . . Fastest Speed 50 | 50 120 Average Speed 118 | 116 120 Slowest Speed 190 | 120 190 Overloaded Moves . | . . Propulsion Burnouts . | . . Robots Hopped . | . . Potential Cave-ins . | . . Cave-ins Triggered . | . . Exploration Rate (%) 25 | 10 41 Regions Visited 1 Branch Regions . Pre-discovered Areas . | . . Known Exits Taken . | . . Unknown Exits Taken 1 | 1 . Scrap Searched . | . . Spaces Dug . | . . Terrain Destroyed . | . . Melee . | . . Projectile . | . . AOE . | . . Terrain Rammed . | . . Walls Destroyed . | . . Machines Disabled . | . . Actions | -11 -10 --------- Run | Yrd Mat Total 1253 | 384 869 Wait 378 | 3 375 Move 756 | 322 434 Hop . | . . Pick Up 13 | 6 7 Fast Attach . | . . Attach 9 | 6 3 Detach . | . . Swap 2 | . 2 Drop 2 | . 2 Fire 92 | 47 45 Melee . | . . Ram . | . . Kick 1 | . 1 Crush . | . . Escape Stasis . | . . Rewire . | . . Trap . | . . Miscellaneous . | . . Route ------- -11/Scrapyard -10/Materials (discovered 1 exit: [*Mat]) History --------- Turn | Location | Event 12 | -11/Scrapyard | Discovered new exit (range 15) 523 | -11/Scrapyard | Entered Materials 524 | -10/Materials | Build established: Mutant 1215 | -10/Materials | Discovered new exit (range 8) 1517 | -10/Materials | Core integrity fell below 50% 1542 | -10/Materials | Core integrity fell below 20% 1562 | -10/Materials | Destroyed by G-34 Mercenary with Small Laser Last Messages --------------- G-34 Mercenary destroyed. Acquired 16 matter. Dropped Aluminum Leg. Dropped Lgt. Assault Rifle. Acquired 19 matter. Acquired Hammer. Triggered Alarm Trap. An alarm sounds. ALERT: Alarm triggered, dispatching investigation squad. G-47 Trooper destroyed. Lgt. Ion Engine destroyed. G-47 Trooper destroyed. Switching to secondary target: G-34 Mercenary. Assault Rifle destroyed. Acquired Particle Gun. Aluminum Leg destroyed. G-34 Mercenary destroyed. G-34 Mercenary suffers critical hit (Burn). [Achievement: Back For More] Map ----- +----------------------------------------------------+ | | | | | | | | | | | | | | | | | | | | | | | | | | | | | | | | | | | | | | | | | | | ?#?##?#####################????????????????????? | | # """"" # #????????????????????? | | # ""T"" #! #????????????????????? | | # # !*#????????????????????? | | # """ """ # [ =@############?????????? | | # """ """ # g %%g%* #?????????? | | # """ """ # ==###### #?????????? | | # ######+######## #?????????? | | #######+#####???# #???????? | | = ######## +???????? | | ###### #???????? | | | + ######## ####### ########???????? | | # #??????# #?????## ##??????????????? | | # #??????# #??????# ????????????????? | | """" # #??????# #??????# ????????????????? | | """" # #??????# #??????# ????????????????? | | """" # #??????# #??????# ????????????????? | | """" # #??????# #??????+ ?????????????????? | | """" # #??????# +??????# ?????????????????? | | ###### #??????# #??????###?????????????????? | | ?????# #??????# #??????????????????????????? | | ?????# #??????# #??????????????????????????? | | ###### #?????? ??????????????????????????? | | ??? T ??????????????????????????? | | ??? "" ??????????????????????????? | | ??? ? ??????????????????????????? | | ############??????? #?????????????????????????? | | ??????????????????? ???????????????????????????? | | ???????????????????????????????????????????????? | +----------------------------------------------------+ Best States ------------- Heat Dissipation 25 Energy Generation 10 Energy Capacity 125 Matter Stores 300 Matter Capacity 300 Sight Range 18 Terrain Scan Density 10 Evasion (%) 55 Item Schematics ----------------- None Robot Schematics ------------------ None Fabricated ------------ Nothing Repaired ---------- Nothing Studied --------- None Alien Tech Used ----------------- None Achievements -------------- Back For More Challenges ------------ None Game ------ Seed ArmorGyrokineticNukerbomber Manual? 0 Play Time 00:12:14 Cumulative 14.0 hours Start 2025.10.25 @ 19:21:07 End 2025.10.25 @ 19:28:57 Sessions 1 Manual Loads 0 Difficulty Rogue Special Mode None Game No. 50 Rogue 50 Adventurer 0 Explorer 0 Win Type - Total 0 Types 0/0/0/0/0/0/0/0/0/0 Lore% 7 Gallery% 15 Achievement% 12 Wizard Run 0 Options --------- Layout 1 ASCII 0 Keyboard 0 Movement Arrows Keybinds 0 Fullscreen 1 Font 24/Smallcaps Map View 50x35 Zoom Use 0% Tactical HUD 0 Map Filters NONE Filters NONE Steam 1 RUN: b89c9537-5379-4b66-be8d-b09b79a23170